bitfinex/quotes_ETHUSD_20250404
["timestamp","ask_amount","ask_price","bid_price","bid_amount"]
[1743762033444,15.52073909,1806.2,1806.1,0.05]
[1743762034341,18.62537569,1806.2,1806.1,0.05]
[1743762036336,14.81967569,1806.2,1806.1,0.05]
[1743762036540,6.17855909,1806.2,1806.1,0.05]
[1743762036912,0.17356909,1806.2,1806.1,0.05]
[1743762037123,0.17356909,1806.2,1806.1,0.608703]
[1743762037338,5.53648,1806.2,1806.1,0.05]
[1743762037516,5.69048583,1806.2,1806.1,0.05]
[1743762037716,0.15400583,1806.2,1806.1,5.58679]
[1743762038040,5.5362,1806.3,1806.1,0.05]
[1743762038242,5.69155898,1806.2,1806.1,0.05]
[1743762038431,0.15507898,1806.2,1806.1,0.05]
[1743762038638,5.5362,1806.3,1806.1,0.05]
[1743762038947,10.02891809,1806.2,1806.1,0.05]
[1743762039840,16.03390809,1806.2,1806.1,0.05]
[1743762040143,5.69179809,1806.2,1806.1,0.05]
[1743762041418,8.69179809,1806.2,1806.1,0.05]
[1743762041619,15.46108809,1806.2,1806.1,0.05]
[1743762042052,5.5374,1805.9,1805.8,0.005]
[1743762042351,24.98785619,1805.9,1805.8,0.005]
[1743762042550,28.04036381,1805.9,1805.8,0.005]
[1743762043083,28.04036381,1805.9,1805.8,1e-05]
[1743762043254,28.80166381,1805.9,1805.8,1e-05]
[1743762045155,28.23866381,1805.9,1805.8,1e-05]
[1743762045353,32.10066381,1805.9,1805.8,1e-05]
[1743762045519,8.53955,1805.2,1805.1,0.05]
[1743762045721,21.73354,1805.2,1805.1,0.05]
[1743762045922,21.87608182,1805.2,1805.1,0.05]
[1743762047232,5.54153,1804.6,1804.4,0.7652]
[1743762047562,0.14021928,1804.5,1804.4,0.7652]
[1743762047861,5.54148,1804.6,1804.4,0.7652]
[1743762048074,0.13935619,1804.5,1804.4,0.005]
[1743762048365,5.68105619,1804.5,1804.4,0.005]
[1743762048565,0.13935619,1804.5,1804.4,0.005]
[1743762048769,5.68105619,1804.5,1804.4,0.005]
[1743762048983,9.35377641,1804.5,1804.4,0.005]
[1743762049475,15.35876641,1804.5,1804.4,0.005]
[1743762049650,18.35876641,1804.5,1804.4,0.005]
[1743762049847,19.11816641,1804.5,1804.4,0.005]
[1743762050269,8.54231,1804.3,1804.2,0.55]
[1743762050604,5.54374,1803.9,1803.2,0.7717]
[1743762050746,12.16295,1803.8,1803.4,5.54505]
[1743762050948,0.757,1803.7,1803.2,6.31731]
[1743762051151,5.54521,1803.4,1803.1,0.05]
[1743762051389,6.618,1803.3,1803.1,0.05]
[1743762051696,6.74842799,1803.3,1803.1,0.05]
[1743762052105,12.29395799,1803.3,1803.1,0.05]
[1743762052396,12.29405799,1803.3,1803.1,0.05]
[1743762052558,6.74842799,1803.3,1803.1,5.59589]
[1743762052941,6.74842799,1803.3,1803.1,11.14167]
[1743762053143,6.74842799,1803.3,1803.2,5.54569]
[1743762053344,6.74842799,1803.3,1803.1,0.05]
[1743762053938,0.13042799,1803.3,1803.1,0.05]
[1743762054514,0.13042799,1803.3,1803.1,5.59597]
[1743762054816,0.13042799,1803.3,1803.2,5.54569]
[1743762054980,0.13042799,1803.3,1803.1,5.59586]
[1743762055177,6.00499,1803.5,1803.1,5.59585]
[1743762055397,6.621,1803.7,1803.4,5.54488]
[1743762055892,6.621,1803.7,1803.5,5.54462]
[1743762056195,12.16527,1803.7,1803.3,0.8315]
[1743762056498,5.5446,1803.6,1803.2,5.54567]
[1743762056697,17.70966,1803.7,1803.2,5.54549]
[1743762056993,5.5448,1803.5,1803.1,5.59598]
[1743762057198,5.54538,1803.3,1803.1,0.05]
[1743762057695,6.606,1803.2,1803.1,0.05]
[1743762058199,12.15169,1803.2,1803.1,0.05]
[1743762058701,21.15668,1803.2,1803.1,0.05]
[1743762058999,24.68734966,1803.2,1803.1,0.05]
[1743762059900,12.61099,1803.2,1803.1,0.05]
[1743762060272,12.61099,1803.2,1803.1,5.596]
[1743762060599,12.61099,1803.2,1803.1,0.05]
[1743762060785,18.15668,1803.2,1803.1,0.05]
[1743762060968,21.15668,1803.2,1803.1,0.05]
[1743762061173,24.13737466,1803.2,1803.1,0.05]
[1743762061684,24.91707466,1803.2,1803.1,0.05]
[1743762061919,25.46707466,1803.2,1803.1,0.05]
[1743762062089,24.91707466,1803.2,1803.1,0.05]
[1743762062489,21.93638,1803.2,1803.1,0.05]
[1743762062710,3.0,1803.2,1803.1,0.05]
[1743762062912,32.1554,1803.3,1803.1,0.05]
[1743762063112,26.61,1803.3,1803.1,0.05]
[1743762063500,5.54569,1803.2,1803.1,0.05]
[1743762063790,12.315827,1803.2,1803.1,0.05]
[1743762064187,22.50740185,1803.2,1803.1,0.05]
[1743762064421,23.05740185,1803.2,1803.1,0.05]
[1743762064695,19.19540185,1803.2,1803.1,0.05]
[1743762064893,19.74540185,1803.2,1803.1,0.05]
[1743762065088,23.05740185,1803.2,1803.1,0.05]
[1743762065400,25.87070185,1803.2,1803.1,0.05]
[1743762065636,26.42070185,1803.2,1803.1,0.05]
[1743762066338,9.64001,1802.9,1802.8,0.005]
[1743762066503,0.7814,1802.4,1802.1,0.05]
[1743762066708,6.76358993,1802.3,1802.1,0.05]
[1743762066919,6.00499,1802.2,1802.1,0.05]
[1743762067125,12.10376,1802.2,1802.1,0.05]
[1743762067341,12.20979461,1802.2,1802.1,0.05]
[1743762067501,18.29298973,1802.2,1802.1,0.05]
[1743762068439,18.18695512,1802.2,1802.1,0.05]
[1743762068594,3.312,1802.1,1801.3,5.5514]
[1743762068795,5.55029,1801.8,1801.4,5.55108]
[1743762069039,6.691,1801.7,1801.6,5.55062]
[1743762069242,6.00499,1801.7,1801.1,0.05]
[1743762069484,6.00499,1801.7,1801.5,5.55076]
[1743762069590,6.00499,1801.7,1801.4,5.55123]
[1743762069791,3.0,1801.4,1801.1,0.05]
[1743762069991,8.5513,1801.4,1801.1,0.05]
[1743762070235,3.0,1801.2,1801.1,0.05]
[1743762070537,9.00499,1801.2,1801.1,0.05]
[1743762071026,14.55684,1801.2,1801.1,0.05]
[1743762071199,9.00499,1801.2,1801.1,0.05]
[1743762071615,15.10684,1801.2,1801.1,0.05]
[1743762071814,17.255217,1801.2,1801.1,0.05]
[1743762072827,17.34928296,1801.2,1801.1,0.05]
[1743762073194,9.09905596,1801.2,1801.1,0.05]
[1743762073397,15.20090596,1801.2,1801.1,0.05]
[1743762073594,5.55419,1800.5,1800.1,0.8676]
[1743762073793,5.55419,1800.5,1800.0,30.0]
[1743762073794,3.8742366,1800.2,1800.0,26.0001]
[1743762073994,0.55,1799.8,1799.1,0.05]
[1743762074195,0.55,1799.4,1799.1,0.05]
[1743762074396,5.95499,1799.4,1799.2,5.55785]
[1743762074594,5.40499,1799.8,1799.2,5.55802]
[1743762074796,5.40499,1799.8,1799.1,0.05]
[1743762075148,0.55,1799.7,1799.6,5.55666]
[1743762075353,6.938,1799.9,1799.6,5.55666]
[1743762075643,6.938,1799.9,1799.4,6.38203]
[1743762075644,5.40499,1800.1,1799.4,0.8249]
[1743762075854,5.40499,1800.1,1800.0,5.55555]
[1743762075996,7.7606,1800.5,1800.1,5.55524]
[1743762076353,12.39528,1800.8,1800.2,5.55468]
[1743762076494,3.1046366,1800.7,1800.2,5.55473]
[1743762076699,0.55,1800.5,1799.9,5.55578]
[1743762076896,5.55403,1800.5,1799.7,0.8309]
[1743762077138,5.55403,1800.5,1799.9,5.55572]
[1743762077316,5.55444,1800.4,1799.8,5.55595]
[1743762077528,5.55444,1800.4,1799.9,5.55583]
[1743762077851,13.3996054,1800.6,1800.2,5.55477]
[1743762078056,13.3996054,1800.6,1800.4,5.55419]
[1743762078057,6.3476054,1800.6,1800.4,5.55419]
[1743762078349,6.3476054,1800.6,1800.2,11.10945]
[1743762078548,11.9013254,1800.6,1800.2,5.55464]
[1743762078847,6.3476054,1800.6,1800.4,5.55416]
[1743762079151,6.3476054,1800.6,1800.3,5.55444]
[1743762079358,6.3476054,1800.6,1800.2,5.55489]
[1743762079515,0.2876054,1800.6,1800.5,5.55401]
[1743762079853,3.0,1800.8,1800.3,0.7979]
[1743762079854,6.06,1800.7,1800.3,6.35248]
[1743762080141,6.06,1800.7,1800.5,5.55386]
[1743762080341,6.06,1800.7,1800.3,5.5545]
[1743762080798,6.06,1800.7,1800.4,5.55413]
[1743762080954,11.61352,1800.7,1800.3,0.8027]
[1743762081152,6.06,1800.7,1800.3,0.8027]
[1743762081451,33.715,1800.9,1800.8,5.55308]
[1743762081666,6.06,1801.0,1800.9,5.55277]
[1743762081825,7.082,1801.3,1801.2,5.55185]
[1743762081826,13.142,1801.3,1801.2,5.55185]
[1743762082013,0.05,1801.9,1801.2,5.55185]
[1743762082213,0.05,1801.9,1801.8,5.55]
[1743762082409,0.05,1801.9,1801.7,5.5503]
[1743762082968,5.55105,1801.5,1801.0,0.8052]
[1743762083258,5.55105,1801.5,1800.7,5.55313]
[1743762083259,5.55188,1801.2,1800.8,5.55294]
[1743762083559,13.203445,1801.4,1800.9,5.55265]
[1743762083760,5.55193,1801.2,1800.7,6.33586]
[1743762084056,5.55185,1801.2,1800.7,6.33598]
[1743762084407,5.55156,1801.3,1800.8,5.55306]
[1743762084607,5.55205,1801.2,1800.7,6.33576]
[1743762084835,5.55205,1801.2,1800.8,5.55308]
[1743762085036,6.1016,1801.3,1800.8,5.55308]
[1743762085251,6.06,1801.4,1800.8,5.55308]
[1743762085451,6.721,1801.4,1801.0,5.55222]
[1743762085747,6.06,1801.4,1801.1,5.55189]
[1743762086163,6.06,1801.4,1800.7,0.7826]
[1743762086339,5.55197,1801.2,1800.7,6.33579]
[1743762086512,5.55197,1801.2,1800.7,11.88899]
[1743762086858,5.55197,1801.2,1800.8,5.55307]
[1743762087166,6.107167,1801.2,1800.8,5.55289]
[1743762087706,0.555197,1801.2,1800.8,5.55289]
[1743762088156,6.107057,1801.2,1800.8,5.55289]
[1743762088391,0.555197,1801.2,1800.9,5.55277]
[1743762088548,0.555197,1801.2,1800.8,5.55289]
[1743762088885,11.10332,1801.3,1800.7,0.7826]
[1743762088886,3.0,1801.3,1800.7,0.7826]
[1743762089034,0.8168,1801.0,1800.0,0.7804]
[1743762089234,0.8168,1801.0,1799.3,6.16]
[1743762089235,5.55482,1800.3,1799.8,5.55596]
[1743762089433,18.72994,1800.2,1799.8,5.55596]
[1743762089648,13.175,1800.2,1799.8,5.55596]
[1743762089847,6.06,1800.2,1800.1,5.55524]
[1743762090076,13.191,1801.1,1800.7,5.55321]
[1743762090275,6.8386,1800.6,1799.6,0.8034]
[1743762090484,0.55,1800.2,1799.7,5.55619]
[1743762090645,6.06,1800.1,1799.6,0.8034]
[1743762090844,12.75472,1800.0,1799.4,5.55727]
[1743762091049,6.06,1799.9,1799.3,0.8034]
[1743762091235,5.55766,1799.4,1799.1,0.05]
[1743762091437,3.0,1799.3,1799.1,0.05]
[1743762091984,12.76544,1799.4,1799.1,5.60826]
[1743762091985,7.208,1799.4,1799.1,5.60826]
[1743762092193,6.06,1799.4,1799.1,0.05]
[1743762092333,5.55802,1799.2,1799.1,0.05]
[1743762092531,12.16802,1799.2,1799.1,0.05]
[1743762092732,6.61,1799.2,1799.1,0.05]
[1743762092978,6.06,1799.2,1799.1,0.05]
[1743762093179,12.16802,1799.2,1799.1,0.05]
[1743762093381,6.06,1799.2,1799.1,0.05]
[1743762093741,6.06,1799.2,1799.1,5.60833]
[1743762093948,11.61802,1799.2,1799.1,0.05]
[1743762094245,15.16802,1799.2,1799.1,0.05]
[1743762094685,5.55926,1798.8,1798.7,0.55]
[1743762094967,23.19966,1798.8,1798.7,0.55]
[1743762095162,6.06,1798.8,1798.7,0.55]
[1743762095773,6.61,1798.8,1798.7,0.55]
[1743762095978,6.06,1798.8,1798.7,0.55]
[1743762096175,15.16926,1798.8,1798.7,0.55]
[1743762096378,15.92956,1798.8,1798.7,0.55]
[1743762096903,6.37501,1798.2,1798.1,0.05]
[1743762097079,6.37501,1798.2,1796.9,0.8081]
[1743762097080,8.56328,1797.5,1796.9,0.8081]
[1743762097396,16.83363172,1797.5,1796.9,6.373]
[1743762097694,3.9332366,1798.0,1797.4,6.11359]
[1743762097900,10.273,1797.9,1797.7,5.56246]
[1743762098049,7.273,1797.9,1797.8,5.56235]
[1743762098246,26.661,1798.2,1798.1,5.56142]
[1743762098552,32.67063172,1798.2,1798.0,11.12346]
[1743762098752,6.11151,1798.1,1797.5,5.56303]
[1743762098951,6.00963172,1798.0,1797.5,5.56324]
[1743762099202,9.00963172,1798.0,1797.9,5.56204]
[1743762099382,26.661,1798.2,1798.0,5.56156]
[1743762099565,35.3267666,1798.2,1797.7,5.56243]
[1743762099895,0.55,1797.8,1797.5,5.56313]
[1743762100058,3.0,1797.6,1797.4,0.55]
[1743762100266,3.0,1797.6,1796.4,12.84754]
[1743762100267,6.11404,1797.3,1796.8,5.56539]
[1743762100448,3.0,1797.1,1796.5,0.825]
[1743762100647,3.0,1797.1,1796.9,5.565]
[1743762100860,3.0,1797.1,1796.6,5.5658]
[1743762101065,7.362,1797.2,1796.8,5.5653]
[1743762101293,5.56519,1796.9,1796.4,5.56668]
[1743762101562,0.55,1797.0,1796.4,5.56642]
[1743762101563,4.3112,1797.0,1796.4,5.56642]
[1743762101790,0.55,1796.8,1796.3,5.56691]
[1743762101993,3.0,1796.6,1796.5,5.56637]
[1743762102217,6.00963172,1796.6,1796.2,0.02]
[1743762102371,3.55,1796.5,1796.2,0.02]
[1743762102572,3.55,1796.3,1796.2,0.02]
[1743762102765,3.0,1796.3,1796.2,0.02]
[1743762102973,26.677,1796.4,1796.3,5.56699]
[1743762103199,26.677,1796.4,1796.2,0.02]
[1743762103200,0.55,1796.3,1796.2,0.02]
[1743762103397,32.68663172,1796.4,1796.2,5.58712]
[1743762103398,26.677,1796.4,1796.2,5.58712]
[1743762103579,0.55,1796.3,1796.2,0.02]
[1743762103784,3.0,1796.3,1796.2,0.02]
[1743762104024,26.677,1796.4,1796.2,0.02]
[1743762104316,3.55,1796.3,1796.2,0.02]
[1743762104509,3.0,1796.3,1796.2,0.02]
[1743762104711,35.79126832,1796.4,1796.2,0.02]
[1743762105014,7.379,1796.8,1796.7,5.56575]
[1743762105987,0.8251,1795.8,1795.4,5.56964]
[1743762106312,10.712,1795.7,1795.6,5.56916]
[1743762106474,33.52473172,1795.8,1795.7,5.56885]
[1743762106475,26.69,1795.8,1795.7,5.56885]
[1743762107007,9.11775,1796.1,1795.1,0.863]
[1743762107175,3.0,1795.6,1795.1,6.43358]
[1743762107391,3.0,1795.6,1795.1,0.05]
[1743762107604,5.56947,1795.5,1795.1,0.05]
[1743762107811,1.3037,1795.8,1795.1,0.05]
[1743762108018,3.0,1795.6,1795.1,0.05]
[1743762108318,3.0,1795.3,1795.1,0.05]
[1743762108625,26.79106596,1795.6,1795.5,5.56947]
[1743762108626,26.697,1795.6,1795.5,5.56947]
[1743762108919,26.697,1795.6,1795.1,0.856]
[1743762108920,7.822,1795.9,1795.8,5.56854]
[1743762109064,7.822,1795.9,1795.1,0.856]
[1743762109262,5.56797,1796.0,1795.1,6.42656]
[1743762109263,3.0,1796.0,1795.1,6.42656]
[1743762109464,3.0,1796.0,1795.7,5.56879]
[1743762109696,3.0,1796.0,1795.6,5.56916]
[1743762109896,3.6546366,1795.9,1795.3,5.56983]
[1743762110104,3.0,1795.7,1795.2,5.57025]
[1743762110302,3.1046366,1795.3,1795.1,0.05]
[1743762110482,3.0,1795.4,1795.1,0.05]
[1743762110703,26.708,1795.5,1795.2,5.57021]
[1743762110909,26.708,1795.5,1795.1,0.05]
[1743762111091,32.27764,1795.5,1795.1,0.05]
[1743762111281,29.8126366,1795.5,1795.1,5.62062]
[1743762111478,3.0,1795.4,1795.1,0.05]
[1743762111681,26.708,1795.5,1795.1,0.05]
[1743762111926,3.0,1795.7,1795.1,0.05]
[1743762112224,10.842,1795.7,1795.5,5.5692]
[1743762112402,10.842,1795.7,1795.2,5.5704]
[1743762112606,16.41099,1795.7,1795.1,5.62065]
[1743762112822,16.41088,1795.7,1795.2,5.57024]
[1743762113032,10.842,1795.7,1795.2,5.57013]
[1743762113326,10.842,1795.7,1795.2,11.14028]
[1743762113489,10.842,1795.7,1795.2,5.57013]
[1743762113926,10.842,1795.7,1795.2,11.14041]
[1743762114124,10.842,1795.7,1795.3,5.57005]
[1743762114529,7.823,1795.8,1795.2,0.805]
[1743762114685,7.823,1795.8,1795.5,5.5693]
[1743762115026,7.823,1795.8,1795.2,5.57036]
[1743762115027,6.1046366,1795.7,1795.2,5.57036]
[1743762115179,6.1046366,1795.7,1795.4,5.56959]
[1743762115383,6.1046366,1795.7,1795.3,5.57007]
[1743762115620,6.1046366,1795.7,1795.1,0.05]
[1743762115827,3.0,1795.7,1795.1,0.612101]
[1743762116035,7.823,1795.8,1795.5,5.5692]
[1743762116324,7.823,1795.8,1795.4,11.13937]
[1743762116540,7.823,1795.8,1795.5,5.56945]
[1743762116696,17.2428666,1795.7,1795.2,5.5704]
[1743762116898,3.0,1795.3,1795.1,0.05]
[1743762117124,11.369,1795.2,1795.1,0.05]
[1743762117436,16.9394,1795.2,1795.1,0.05]
[1743762117585,3.0,1795.3,1795.1,5.62067]
[1743762117784,3.0,1795.3,1795.1,5.62057]
[1743762118008,3.0,1795.4,1795.2,5.5704]
[1743762118317,5.56893,1795.7,1795.1,5.62071]
[1743762118549,3.0,1795.8,1795.5,5.56936]
[1743762118848,3.0,1795.8,1795.4,5.56956]
[1743762119042,8.6738566,1795.6,1795.1,5.62058]
[1743762119245,3.0,1795.5,1795.1,0.05]
[1743762119567,11.126,1795.7,1795.1,0.05]
[1743762119867,6.32951,1795.3,1795.1,0.05]
[1743762120019,11.382,1795.2,1795.1,0.05]
[1743762120212,14.4866366,1795.2,1795.1,0.05]
[1743762120561,5.57103,1795.0,1794.9,0.25]
[1743762120776,0.55,1795.0,1794.9,0.25]
[1743762120918,11.389,1795.1,1794.9,0.25]
[1743762121273,3.1046366,1795.5,1795.1,6.32382]
[1743762121419,3.39408447,1795.8,1795.7,5.56885]
[1743762121743,7.85,1796.0,1795.2,5.5704]
[1743762122066,3.1046366,1796.1,1795.1,1.385482]
[1743762122067,3.1046366,1796.1,1796.0,5.56792]
[1743762122249,3.1046366,1796.1,1795.5,5.56934]
[1743762122560,3.0,1795.8,1795.2,0.7531]
[1743762122717,7.912,1796.0,1795.6,5.56905]
[1743762122917,7.912,1796.0,1795.4,5.56978]
[1743762123112,3.1046366,1796.4,1796.0,5.56767]
[1743762123349,7.909,1796.6,1796.5,5.56622]
[1743762123548,26.732,1796.7,1796.6,5.56606]
[1743762123728,0.05,1796.9,1796.8,5.56544]
[1743762124334,1e-05,1796.9,1796.8,7.55439872]
[1743762124537,0.828,1797.9,1797.6,5.56266]
[1743762124818,0.05,1797.9,1797.8,5.56235]
[1743762125058,1e-05,1797.9,1797.8,5.56235]
[1743762125272,1e-05,1797.9,1797.8,7.50059817]
[1743762125577,3.1046466,1797.9,1797.3,6.3839]
[1743762125725,3.1046466,1797.9,1797.8,5.56235]
[1743762125726,1e-05,1797.9,1797.8,5.56235]
[1743762126421,1e-05,1797.9,1797.8,6.38435]
[1743762126916,3.1046366,1798.7,1798.3,5.56073]
[1743762127141,0.31046366,1798.6,1798.2,5.56111]
[1743762127342,3.31046366,1798.6,1798.2,11.12222]
[1743762127529,8.018,1798.7,1798.1,5.56142]
[1743762127742,35.85480994,1799.1,1798.1,5.56142]
[1743762128053,5.55912,1798.9,1798.3,5.56078]
[1743762128351,41.12428,1799.1,1798.2,5.56111]
[1743762128352,34.741,1799.1,1798.2,5.56111]
[1743762128649,5.55859,1799.1,1798.5,6.3338]
[1743762128849,3.0,1798.8,1798.1,0.7738]
[1743762129049,8.035,1799.0,1798.8,5.55905]
[1743762129250,4.15601014,1799.2,1798.9,5.55873]
[1743762129439,8.037,1799.5,1798.9,5.55873]
[1743762129615,34.804,1799.9,1799.6,5.55656]
[1743762129952,8.6611566,1799.7,1799.2,5.55781]
[1743762130127,3.1046366,1799.7,1799.0,5.55861]
[1743762130325,5.55714,1799.5,1798.9,5.55869]
[1743762130645,0.555714,1799.5,1799.1,5.55828]
[1743762130848,3.1046366,1799.7,1798.9,5.55895]
[1743762131062,5.55878,1799.0,1798.5,0.8212]
[1743762131267,3.0,1799.0,1798.5,6.38134]
[1743762131560,3.0,1798.8,1798.4,5.5602]
[1743762131773,8.55952,1798.8,1798.2,6.3597]
[1743762131981,3.0,1798.8,1798.3,5.56059]
[1743762132279,8.063,1798.9,1798.4,11.12059]
[1743762132431,3.0,1798.8,1798.2,6.99567]
[1743762132641,5.55978,1798.7,1798.2,0.7986]
[1743762132974,3.0,1798.6,1798.2,0.7986]
[1743762133272,11.9418366,1798.9,1798.2,0.7986]
[1743762133273,3.0,1798.9,1798.2,0.7986]
[1743762133483,3.0,1798.9,1798.4,5.56046]
[1743762133650,0.7788,1799.2,1798.7,5.55954]
[1743762133846,3.1046366,1799.1,1798.5,0.556046]
[1743762134047,0.55,1799.2,1799.1,5.55818]
[1743762134246,8.033,1799.4,1799.2,5.55779]
[1743762134455,8.033,1799.4,1799.0,5.55843]
[1743762134670,5.55823,1799.2,1798.6,5.55963]
[1743762134849,3.1046366,1799.3,1798.5,6.38132]
[1743762135048,5.55857,1799.1,1798.6,5.55985]
[1743762135377,8.55914,1798.9,1798.4,5.56036]
[1743762135571,6.1046366,1798.7,1798.1,6.38048]
[1743762135779,11.6642666,1798.7,1798.1,6.38072]
[1743762136082,3.0,1798.6,1797.8,0.7645]
[1743762136383,3.0,1798.4,1797.9,5.56173]
[1743762136538,3.0,1798.2,1797.7,5.5625]
[1743762136867,3.0,1798.2,1797.4,5.56354]
[1743762136868,3.0,1797.7,1797.1,0.7755]
[1743762137069,11.029,1797.7,1797.1,0.7755]
[1743762137258,8.029,1797.7,1797.1,0.7755]
[1743762137446,26.695,1798.1,1797.1,0.7755]
[1743762137447,0.7546,1798.3,1797.1,0.7755]
[1743762137652,8.028,1798.3,1798.0,5.56146]
[1743762137849,3.0,1798.1,1797.8,5.56204]
[1743762138169,3.0,1798.1,1797.8,5.56226]
[1743762138468,3.0,1798.2,1797.8,5.56226]
[1743762138861,3.0,1798.2,1797.8,6.674691]
[1743762139056,3.0,1798.2,1797.9,5.562]
[1743762139665,5.56147,1798.1,1797.6,5.56285]
[1743762139865,3.0,1798.2,1797.4,0.8328]
[1743762139866,6.1046366,1798.2,1797.4,0.8328]
[1743762140062,7.998,1798.3,1797.3,13.55164]
[1743762140378,7.987,1798.7,1798.5,5.56007]
[1743762140541,7.987,1798.7,1798.4,5.56041]
[1743762140742,7.987,1798.7,1797.9,5.56196]
[1743762140743,3.0,1798.5,1797.9,0.7946]
[1743762140961,3.0,1798.5,1798.3,5.5607]
[1743762141176,3.0,1798.5,1798.2,5.561]
[1743762141356,3.0,1798.5,1798.1,5.56126]
[1743762141357,7.999,1798.6,1798.5,5.56018]
[1743762141575,7.999,1798.6,1798.3,5.56062]
[1743762141777,3.1046366,1798.5,1797.9,6.35652]
[1743762141941,8.56143,1798.1,1797.6,6.33915]
[1743762142144,8.003,1798.0,1797.6,6.33915]
[1743762142447,5.56331,1797.5,1797.0,5.56481]
[1743762142650,5.56331,1797.5,1796.9,5.56501]
[1743762142651,5.5636,1797.4,1796.9,5.56501]
[1743762142965,5.5636,1797.4,1796.9,6.121491]
[1743762143147,3.0,1797.3,1796.9,6.121491]
[1743762143483,3.0,1797.1,1796.6,6.37536]
[1743762143641,3.0,1797.1,1796.1,0.05]
[1743762143845,6.1046366,1796.2,1796.1,0.05]
[1743762144044,14.1466366,1796.2,1796.1,0.05]
[1743762144468,0.2888725,1796.3,1796.1,5.61756]
[1743762144772,5.56556,1796.8,1796.1,5.61756]
[1743762144773,3.0,1796.8,1796.2,5.5673]
[1743762144970,3.0,1796.8,1796.5,5.56629]
[1743762145245,11.9426366,1796.9,1796.1,0.611756]
[1743762145584,0.8115,1797.6,1796.3,0.7711]
[1743762145751,11.1326366,1797.8,1797.0,0.7711]
[1743762145952,3.1046366,1797.2,1796.8,5.56543]
[1743762146381,3.1046366,1797.2,1796.9,5.56491]
[1743762146580,13.62008,1797.3,1796.6,6.32096]
[1743762146884,3.1046366,1797.2,1796.3,0.87065233]
[1743762147085,3.1046366,1797.2,1796.5,5.56635]
[1743762147262,11.606,1797.3,1796.1,0.05]
[1743762147464,3.1046366,1796.9,1796.2,5.5673]
[1743762147782,3.7781,1796.8,1796.3,5.56699]
[1743762147989,3.7781,1796.8,1796.1,0.05]
[1743762148154,9.34379,1796.8,1796.1,0.05]
[1743762148357,8.6709366,1796.6,1796.1,0.05]
[1743762148565,3.1046366,1796.6,1796.1,5.61744]
[1743762148769,0.7781,1796.8,1796.4,5.56667]
[1743762148975,0.7781,1796.8,1796.1,5.61741]
[1743762149177,3.1046366,1796.6,1796.1,0.05]
[1743762149382,8.6709466,1796.6,1796.1,0.05]
[1743762149579,3.1046366,1796.6,1796.1,0.05]
[1743762149977,0.7781,1796.8,1796.3,5.56679]
[1743762150286,5.56589,1796.7,1796.1,0.05]
[1743762150589,16.7497266,1796.6,1796.1,0.05]
[1743762150791,5.56638,1796.5,1796.1,0.05]
[1743762151158,5.56684,1796.4,1796.1,0.05]
[1743762151387,0.8165,1796.2,1796.1,0.05]
[1743762152001,3.9211366,1796.5,1796.1,0.05]
[1743762152154,0.8165,1796.5,1796.1,0.05]
[1743762152495,6.1046366,1796.9,1796.1,0.8684]
[1743762152792,0.7636,1796.5,1796.1,0.05]
[1743762153365,17.36299,1796.5,1796.1,0.05]
[1743762153565,8.6717266,1796.3,1796.1,0.05]
[1743762153789,3.0,1796.2,1796.1,0.05]
[1743762154494,8.026,1796.4,1796.1,0.05]
[1743762154695,0.7636,1796.5,1796.1,5.6174]
[1743762154994,0.89774745,1796.8,1796.2,0.56174]
[1743762155212,0.89774745,1796.8,1796.1,0.05]
[1743762155213,3.0,1796.6,1796.1,0.05]
[1743762155371,3.0,1796.6,1796.1,5.61745]
[1743762155704,3.0,1796.6,1796.1,0.05]
[1743762155911,3.0,1796.6,1796.1,5.61742]
[1743762156145,3.0,1796.6,1796.1,0.05]
[1743762156302,2.619,1796.4,1796.1,0.05]
[1743762156634,14.36421,1796.3,1796.1,0.05]
[1743762156802,5.5673,1796.2,1796.1,0.05]
[1743762157231,17.4691066,1796.3,1796.1,0.05]
[1743762157600,8.7972,1796.3,1796.1,0.05]
[1743762157944,0.09984745,1796.8,1796.7,5.56575]
[1743762158147,0.09984745,1796.8,1796.5,5.56633]
[1743762158353,0.09984745,1796.8,1796.3,11.13366]
[1743762158499,0.09984745,1796.8,1796.5,5.56622]
[1743762158855,0.7529,1796.9,1796.4,5.56666]
[1743762159040,0.7529,1797.2,1796.5,0.61228127]
[1743762159336,32.28153,1797.5,1796.8,5.56542]
[1743762159337,9.4831966,1797.5,1796.8,5.56542]
[1743762159537,3.0,1797.4,1796.6,0.8177]
[1743762159754,3.0,1797.4,1797.0,5.56464]
[1743762159949,0.09406596,1797.5,1797.4,5.56359]
[1743762160253,0.28859762,1798.1,1798.0,5.56173]
[1743762160451,0.8317,1798.3,1798.1,5.56135]
[1743762160759,27.5376,1798.7,1798.2,5.56082]
[1743762160937,27.5376,1798.7,1797.9,5.56204]
[1743762161147,3.0,1798.6,1798.2,5.56088]